fUST/lending_fUST_20250212
["ID","MTS","AMOUNT","RATE_DAILY","PERIOD"]
[352776324,1739304635522,-500.0,0.00010958,2]
[352776326,1739304635531,-500.0,0.00010958,2]
[352776328,1739304635540,-500.0,0.00010958,2]
[352776330,1739304635550,-500.0,0.00010958,2]
[352776332,1739304635559,-506.31294162,0.00010958,2]
[352776334,1739304635568,-500.0,0.00010958,2]
[352776336,1739304635577,-500.0,0.00010958,2]
[352776338,1739304635586,-500.0,0.00010958,2]
[352776340,1739304635596,-500.0,0.00010958,2]
[352776342,1739304635606,-500.0,0.00010958,2]
[352776344,1739304635619,-500.0,0.00010958,2]
[352776346,1739304635628,-500.0,0.00010958,2]
[352776348,1739304635638,-500.0,0.00010958,2]
[352776350,1739304635648,-500.0,0.00010958,2]
[352776352,1739304635657,-500.0,0.00010958,2]
[352776354,1739304635666,-500.0,0.00010958,2]
[352776356,1739304635675,-500.0,0.00010958,2]
[352776358,1739304635685,-500.0,0.00010958,2]
[352776360,1739304635694,-500.0,0.00010958,2]
[352776362,1739304635703,-500.0,0.00010958,2]
[352776364,1739304635712,-500.0,0.00010958,2]
[352776366,1739304635721,-500.0,0.00010958,2]
[352776368,1739304635731,-500.0,0.00010958,2]
[352776370,1739304635741,-500.0,0.00010958,2]
[352776372,1739304635750,-500.0,0.00010958,2]
[352776374,1739304635759,-501.30781348,0.00010958,2]
[352776376,1739304635769,-500.0,0.00010958,2]
[352776378,1739304635779,-500.0,0.00010958,2]
[352776380,1739304635789,-506.00447112,0.00010958,2]
[352776382,1739304635799,-500.0,0.00010958,2]
[352776384,1739304635809,-500.0,0.00010958,2]
[352776386,1739304635819,-500.0,0.00010958,2]
[352776388,1739304635829,-500.0,0.00010958,2]
[352776390,1739304635839,-500.0,0.00010958,2]
[352776392,1739304635849,-500.0,0.00010958,2]
[352776394,1739304635859,-507.04,0.00010958,2]
[352776396,1739304635872,-500.0,0.00010958,2]
[352776398,1739304635882,-500.19818224,0.00010958,2]
[352776400,1739304635891,-500.0,0.00010958,2]
[352776402,1739304635903,-500.0,0.00010958,2]
[352776404,1739304635914,-500.0,0.00010958,2]
[352776406,1739304635924,-500.0,0.00010958,2]
[352776408,1739304635934,-500.0,0.00010958,2]
[352776410,1739304635945,-500.0,0.00010958,2]
[352776412,1739304635955,-500.0,0.00010958,2]
[352776414,1739304635965,-500.0,0.00010958,2]
[352776416,1739304635976,-500.211115,0.00010958,2]
[352776418,1739304635987,-246.59405577,0.00010958,2]
[352776420,1739304635998,-500.0,0.00010958,2]
[352776422,1739304636008,-525.86296566,0.00010958,2]
[352776424,1739304636019,-500.0,0.00010958,2]
[352776426,1739304636029,-500.0,0.00010958,2]
[352776428,1739304636039,-500.0,0.00010958,2]
[352776430,1739304636049,-500.0,0.00010958,2]
[352776432,1739304636060,-500.25292424,0.00010958,2]
[352776434,1739304636070,-500.0,0.00010958,2]
[352776436,1739304636080,-500.0,0.00010958,2]
[352776438,1739304636090,-500.0,0.00010958,2]
[352776440,1739304636100,-500.52610147,0.00010958,2]
[352776442,1739304636109,-500.0,0.00010958,2]
[352776444,1739304636118,-500.0,0.00010958,2]
[352776446,1739304636127,-500.0,0.00010958,2]
[352776448,1739304636138,-500.0,0.00010958,2]
[352776449,1739304636147,-500.0,0.00010958,2]
[352776450,1739304636163,-500.0,0.00010958,2]
[352776451,1739304636172,-500.0,0.00010958,2]
[352776452,1739304636182,-500.0,0.00010958,2]
[352776453,1739304636191,-533.67,0.00010958,2]
[352776454,1739304636201,-500.0,0.00010958,2]
[352776455,1739304636210,-500.0,0.00010958,2]
[352776456,1739304636220,-500.24281019,0.00010958,2]
[352776457,1739304636230,-500.0,0.00010958,2]
[352776458,1739304636240,-500.0,0.00010958,2]
[352776459,1739304636250,-500.0,0.00010958,2]
[352776460,1739304636260,-500.0,0.00010958,2]
[352776461,1739304636269,-500.0,0.00010958,2]
[352776462,1739304636279,-500.0,0.00010958,2]
[352776463,1739304636290,-500.0,0.00010958,2]
[352776464,1739304636299,-500.0,0.00010958,2]
[352776465,1739304636309,-500.0,0.00010958,2]
[352776466,1739304636319,-223.0760166,0.00010958,2]
[352776467,1739304636328,-500.0,0.00010958,2]
[352776468,1739304636338,-500.0,0.00010958,2]
[352776469,1739304636348,-502.19630505,0.00010958,2]
[352776470,1739304636358,-163.90644286,0.00010958,2]
[352776471,1739304636367,-500.0,0.00010958,2]
[352776472,1739304636376,-567.65,0.00010958,2]
[352776473,1739304636386,-500.0,0.00010958,2]
[352776474,1739304636395,-500.0,0.00010958,2]
[352776475,1739304636406,-500.0,0.00010958,2]
[352776476,1739304636415,-615.97214328,0.00010958,2]
[352776477,1739304636425,-500.0,0.00010958,2]
[352776478,1739304636435,-500.0,0.00010958,2]
[352776479,1739304636445,-500.0,0.00010958,2]
[352776480,1739304636455,-500.0,0.00010958,2]
[352776481,1739304636464,-500.0,0.00010958,2]
[352776482,1739304636474,-500.0,0.00010958,2]
[352776483,1739304636484,-500.0,0.00010958,2]
[352776484,1739304636493,-500.0,0.00010958,2]
[352776485,1739304636505,-500.0,0.00010958,2]
[352776486,1739304636514,-500.0,0.00010958,2]
[352776487,1739304636523,-500.0,0.00010958,2]
[352776488,1739304636533,-500.0,0.00010958,2]
[352776489,1739304636543,-500.0,0.00010958,2]
[352776490,1739304636552,-500.0,0.00010958,2]
[352776491,1739304636562,-500.0,0.00010958,2]
[352776492,1739304636571,-500.0,0.00010958,2]
[352776493,1739304636581,-500.0,0.00010958,2]
[352776494,1739304636591,-500.0,0.00010958,2]
[352776495,1739304636601,-500.0,0.00010958,2]
[352776496,1739304636610,-500.0,0.00010958,2]
[352776497,1739304636619,-500.0,0.00010958,2]
[352776498,1739304636629,-500.0,0.00010958,2]
[352776499,1739304636639,-500.0,0.00010958,2]
[352776500,1739304636648,-500.0,0.00010958,2]
[352776501,1739304636658,-500.0,0.00010958,2]
[352776502,1739304636668,-500.0,0.00010958,2]
[352776503,1739304636677,-500.0,0.00010958,2]
[352776504,1739304636686,-500.0,0.00010958,2]
[352776505,1739304636696,-500.0,0.00010958,2]
[352776506,1739304636705,-500.0,0.00010958,2]
[352776507,1739304636715,-500.0,0.00010958,2]
[352776508,1739304636724,-500.0,0.00010958,2]
[352776509,1739304636734,-500.0,0.00010958,2]
[352776510,1739304636743,-500.0,0.00010958,2]
[352776511,1739304636753,-500.0,0.00010958,2]
[352776512,1739304636762,-500.0,0.00010958,2]
[352776513,1739304636772,-500.0,0.00010958,2]
[352776514,1739304636781,-500.0,0.00010958,2]
[352776515,1739304636791,-500.0,0.00010958,2]
[352776516,1739304636801,-333.33564127,0.00010958,2]
[352776517,1739304636811,-500.0,0.00010958,2]
[352776518,1739304636820,-500.0,0.00010958,2]
[352776519,1739304636829,-500.0,0.00010958,2]
[352776520,1739304636839,-500.0,0.00010958,2]
[352776521,1739304636849,-500.0,0.00010958,2]
[352776522,1739304636859,-500.0,0.00010958,2]
[352776523,1739304636869,-500.0,0.00010958,2]
[352776524,1739304636880,-500.0,0.00010958,2]
[352776525,1739304636890,-500.0,0.00010958,2]
[352776526,1739304636899,-500.0,0.00010958,2]
[352776527,1739304636908,-500.0,0.00010958,2]
[352776528,1739304636919,-500.0,0.00010958,2]
[352776529,1739304636929,-500.0,0.00010958,2]
[352776530,1739304636938,-500.0,0.00010958,2]
[352776531,1739304636949,-500.0,0.00010958,2]
[352776532,1739304636959,-500.0,0.00010958,2]
[352776533,1739304636968,-500.0,0.00010958,2]
[352776534,1739304636978,-500.0,0.00010958,2]
[352776535,1739304636988,-500.0,0.00010958,2]
[352776536,1739304636998,-500.0,0.00010958,2]
[352776537,1739304637007,-500.0,0.00010958,2]
[352776538,1739304637017,-500.0,0.00010958,2]
[352776539,1739304637026,-500.0,0.00010958,2]
[352776540,1739304637036,-500.0,0.00010958,2]
[352776541,1739304637046,-510.18,0.00010958,2]
[352776542,1739304637055,-500.0,0.00010958,2]
[352776543,1739304637063,-500.0,0.00010958,2]
[352776544,1739304637073,-500.0,0.00010958,2]
[352776545,1739304637082,-500.0,0.00010958,2]
[352776546,1739304637091,-500.0,0.00010958,2]
[352776547,1739304637100,-500.0,0.00010958,2]
[352776548,1739304637109,-500.0,0.00010958,2]
[352776549,1739304637119,-500.0,0.00010958,2]
[352776550,1739304637128,-500.0,0.00010958,2]
[352776551,1739304637137,-500.0,0.00010958,2]
[352776552,1739304637147,-500.0,0.00010958,2]
[352776553,1739304637158,-500.0,0.00010958,2]
[352776554,1739304637168,-500.0,0.00010958,2]
[352776555,1739304637178,-407.78544257,0.00010958,2]
[352776556,1739304637187,-500.0,0.00010958,2]
[352776557,1739304637196,-500.0,0.00010958,2]
[352776558,1739304637205,-500.0,0.00010958,2]
[352776559,1739304637215,-500.0,0.00010958,2]
[352776560,1739304637224,-500.0,0.00010958,2]
[352776561,1739304637233,-500.0,0.00010958,2]
[352776562,1739304637242,-500.0,0.00010958,2]
[352776563,1739304637251,-500.0,0.00010958,2]
[352776564,1739304637259,-500.0,0.00010958,2]
[352776565,1739304637268,-500.0,0.00010958,2]
[352776566,1739304637277,-500.0,0.00010958,2]
[352776567,1739304637286,-500.0,0.00010958,2]
[352776568,1739304637295,-500.0,0.00010958,2]
[352776569,1739304637305,-500.0,0.00010958,2]
[352776570,1739304637315,-500.0,0.00010958,2]
[352776571,1739304637324,-508.98091614,0.00010958,2]
[352776572,1739304637333,-500.0,0.00010958,2]
[352776573,1739304637342,-500.0,0.00010958,2]
[352776574,1739304637352,-500.0,0.00010958,2]
[352776575,1739304637362,-500.0,0.00010958,2]
[352776576,1739304637371,-500.0,0.00010958,2]
[352776577,1739304637381,-500.0,0.00010958,2]
[352776578,1739304637391,-380.54855771,0.00010958,2]
[352776579,1739304637400,-500.0,0.00010958,2]
[352776580,1739304637411,-500.0,0.00010958,2]
[352776581,1739304637421,-500.0,0.00010958,2]
[352776582,1739304637430,-500.0,0.00010958,2]
[352776583,1739304637440,-500.0,0.00010958,2]
[352776584,1739304637449,-500.0,0.00010958,2]
[352776585,1739304637459,-500.0,0.00010958,2]
[352776586,1739304637469,-500.0,0.00010958,2]
[352776587,1739304637478,-500.0,0.00010958,2]
[352776588,1739304637487,-500.0,0.00010958,2]
[352776589,1739304637497,-500.0,0.00010958,2]
[352776590,1739304637507,-500.0,0.00010958,2]
[352776591,1739304637516,-500.0,0.00010958,2]
[352776592,1739304637526,-500.0,0.00010958,2]
[352776593,1739304637535,-500.0,0.00010958,2]
[352776594,1739304637545,-180.14438665,0.00010958,2]
[352776595,1739304637554,-500.0,0.00010958,2]
[352776596,1739304637564,-500.0,0.00010958,2]
[352776597,1739304637573,-500.0,0.00010958,2]
[352776598,1739304637583,-500.0,0.00010958,2]
[352776599,1739304637592,-500.0,0.00010958,2]
[352776600,1739304637602,-500.0,0.00010958,2]
[352776601,1739304637611,-500.0,0.00010958,2]
[352776602,1739304637621,-231.74917396,0.00010958,2]
[352776603,1739304637630,-500.0,0.00010958,2]
[352776604,1739304637639,-500.0,0.00010958,2]
[352776605,1739304637649,-500.0,0.00010958,2]
[352776606,1739304637661,-500.0,0.00010958,2]
[352776607,1739304637670,-500.0,0.00010958,2]
[352776608,1739304637679,-500.0,0.00010958,2]
[352776609,1739304637688,-501.51,0.00010958,2]
[352776611,1739304637697,-1627.71,0.00010958,2]
[352776612,1739304637708,-500.0,0.00010958,2]
[352776613,1739304637717,-500.0,0.00010958,2]
[352776614,1739304637727,-500.0,0.00010958,2]
[352776615,1739304637736,-500.0,0.00010958,2]
[352776616,1739304637745,-500.0,0.00010958,2]
[352776617,1739304637755,-500.0,0.00010958,2]
[352776618,1739304637764,-500.0,0.00010958,2]
[352776619,1739304637774,-500.0,0.00010958,2]
[352776620,1739304637783,-500.0,0.00010958,2]
[352776621,1739304637793,-500.0,0.00010958,2]
[352776623,1739304637802,-572.28,0.00010958,2]
[352776626,1739304637812,-500.0,0.00010958,2]
[352776628,1739304637821,-502.70452684,0.00010958,2]
[352776629,1739304637831,-500.0,0.00010958,2]
[352776630,1739304637840,-500.0,0.00010958,2]
[352776631,1739304637849,-500.0,0.00010958,2]
[352776632,1739304637859,-500.0,0.00010958,2]
[352776634,1739304637869,-500.0,0.00010958,2]
[352776636,1739304637879,-500.0,0.00010958,2]
[352776638,1739304637888,-420.0,0.00010988,2]
[352776640,1739304637898,-579.87,0.00011094,2]
[352776642,1739304637910,-1042.65,0.00011094,2]
[352776645,1739304637919,-500.0,0.00011094,2]
[352776647,1739304637929,-526.88564986,0.00011094,2]
[352776649,1739304637939,-349.78760054,0.00011095,2]
[352776651,1739304637950,-640.22,0.00011095,2]
[352776653,1739304637960,-500.0,0.00011095,2]
[352776656,1739304637970,-500.0,0.00011095,2]
[352776659,1739304637979,-500.0,0.00011095,2]
[352776661,1739304637989,-599.72,0.00011095,2]
[352776663,1739304637998,-470.0,0.00011095,2]
[352776665,1739304638009,-500.0,0.00011095,2]
[352776667,1739304638018,-500.0,0.00011095,2]
[352776669,1739304638028,-500.0,0.00011095,2]
[352776671,1739304638038,-500.0,0.00011095,2]
[352776673,1739304638047,-500.0,0.00011095,2]
[352776675,1739304638056,-500.0,0.00011095,2]
[352776677,1739304638066,-500.0,0.00011095,2]
[352776679,1739304638075,-500.0,0.00011095,2]
[352776681,1739304638085,-500.0,0.00011095,2]
[352776683,1739304638094,-562.37,0.00011095,2]
[352776685,1739304638103,-500.0,0.00011095,2]
[352776687,1739304638113,-500.0,0.00011095,2]
[352776689,1739304638123,-500.0,0.00011095,2]
[352776691,1739304638131,-584.94,0.00011095,2]
[352776693,1739304638141,-500.0,0.00011095,2]
[352776695,1739304638150,-500.0,0.00011095,2]
[352776710,1739304638277,-630.08,0.00011095,2]
[352776712,1739304638287,-500.0,0.00011095,2]
[352776714,1739304638296,-500.0,0.00011095,2]
[352776716,1739304638305,-500.0,0.00011095,2]
[352776718,1739304638316,-500.0,0.00011095,2]
[352776720,1739304638325,-500.0,0.00011095,2]
[352776722,1739304638335,-548.82,0.00011095,2]
[352776724,1739304638344,-500.0,0.00011095,2]
[352776726,1739304638354,-212.89,0.00011095,2]
[352776728,1739304638363,-426.69,0.00011095,2]
[352776730,1739304638373,-500.0,0.00011095,2]
[352776732,1739304638382,-226.28697611,0.00011095,2]
[352776734,1739304638392,-500.0,0.00011095,2]
[352776736,1739304638401,-500.0,0.00011095,2]
[352776738,1739304638411,-567.65,0.00011095,2]
[352776740,1739304638420,-500.0,0.00011095,2]
[352776742,1739304638429,-500.0,0.00011095,2]
[352776744,1739304638439,-500.0,0.00011095,2]
[352776746,1739304638448,-500.0,0.00011095,2]
[352776748,1739304638457,-500.0,0.00011095,2]
[352776749,1739304638467,-500.0,0.00011095,2]
[352776750,1739304638476,-500.0,0.00011095,2]
[352776751,1739304638485,-500.0,0.00011095,2]
[352776752,1739304638494,-638.58,0.00011095,2]
[352776753,1739304638503,-500.0,0.00011095,2]
[352776754,1739304638512,-500.0,0.00011095,2]
[352776755,1739304638521,-500.0,0.00011095,2]
[352776756,1739304638531,-500.0,0.00011095,2]
[352776757,1739304638540,-500.0,0.00011095,2]
[352776758,1739304638549,-500.0,0.00011095,2]
[352776759,1739304638558,-500.0,0.00011095,2]
[352776760,1739304638567,-500.0,0.00011095,2]
[352776761,1739304638576,-409.95118041,0.00011095,2]
[352776762,1739304638586,-500.0,0.00011095,2]
[352776763,1739304638598,-500.0,0.00011095,2]
[352776764,1739304638608,-500.0,0.00011095,2]
[352776765,1739304638617,-538.07627652,0.00011095,2]
[352776766,1739304638626,-500.0,0.00011095,2]
[352776768,1739304638635,-632.67434406,0.00011095,2]
[352776770,1739304638645,-501.51,0.00011095,2]
[352776772,1739304638655,-1627.71,0.00011095,2]
[352776774,1739304638665,-500.0,0.00011095,2]
[352776776,1739304638674,-500.0,0.00011095,2]
[352776779,1739304638684,-572.28,0.00011095,2]
[352776781,1739304638693,-500.0,0.00011095,2]
[352776782,1739304638702,-500.0,0.00011095,2]
[352776784,1739304638712,-500.0,0.00011095,2]
[352776786,1739304638721,-500.0,0.00011095,2]
[352776788,1739304638730,-423.0,0.000112,3]
[352776790,1739304638739,-350.36,0.00011232,2]
[352776792,1739304638749,-516.94,0.00011232,2]
[352776794,1739304638758,-500.0,0.00011232,2]
[352776796,1739304638769,-500.0,0.00011232,2]
[352776798,1739304638779,-500.0,0.00011232,2]
[352776800,1739304638789,-500.0,0.00011232,2]
[352776802,1739304638798,-500.0,0.00011232,2]
[352776805,1739304638808,-500.0,0.00011232,2]
[352776807,1739304638819,-500.0,0.00011232,2]
[352776809,1739304638828,-500.0,0.00011232,2]
[352776811,1739304638838,-485.22,0.00011232,2]
[352776813,1739304638847,-500.0,0.00011232,2]
[352776815,1739304638857,-500.0,0.00011232,2]
[352776817,1739304638869,-500.0,0.00011232,2]
[352776819,1739304638879,-567.65,0.00011232,2]
[352776821,1739304638888,-198.21897415,0.00011232,2]
[352776823,1739304638898,-357.44,0.00011232,2]
[352776824,1739304638908,-500.0,0.00011232,2]
[352776826,1739304638919,-500.0,0.00011232,2]
[352776828,1739304638929,-253.17245144,0.00011232,2]
[352776830,1739304638938,-500.0,0.00011232,2]
[352776832,1739304638949,-500.0,0.00011232,2]
[352776834,1739304638959,-500.0,0.00011232,2]
[352776836,1739304638968,-500.0,0.00011232,2]
[352776838,1739304638978,-189.32,0.00011232,2]
[352776840,1739304638987,-175.91,0.00011232,2]
[352776842,1739304638996,-500.0,0.00011232,2]
[352776844,1739304639006,-500.0,0.00011232,2]
[352776846,1739304639015,-500.0,0.00011232,2]
[352776848,1739304639025,-500.0,0.00011232,2]
[352776850,1739304639035,-501.51,0.00011232,2]
[352776852,1739304639044,-1627.71,0.00011232,2]
[352776854,1739304639054,-190.3,0.00011232,2]
[352776856,1739304639064,-572.28,0.00011232,2]
[352776858,1739304639074,-500.0,0.00011232,2]
[352776860,1739304639084,-444.92,0.00011369,2]
[352776862,1739304639093,-500.0,0.00011369,2]
[352776864,1739304639103,-441.94,0.00011369,2]
[352776866,1739304639113,-176.46,0.00011369,2]
[352776867,1739304639123,-195.39,0.00011369,2]
[352776869,1739304639132,-500.0,0.00011369,2]
[352776871,1739304639142,-326.22,0.00011369,2]
[352776873,1739304639153,-500.0,0.00011369,2]
[352776875,1739304639163,-309.09,0.00011369,2]
[352776877,1739304639172,-500.0,0.00011369,2]
[352776879,1739304639181,-500.0,0.00011369,2]
[352776881,1739304639190,-567.65,0.00011369,2]
[352776883,1739304639200,-640.37,0.00011369,2]
[352776885,1739304639209,-500.0,0.00011369,2]
[352776887,1739304639218,-500.0,0.00011369,2]
[352776889,1739304639232,-500.0,0.00011369,2]
[352776891,1739304639242,-500.0,0.00011369,2]
[352776893,1739304639251,-241.72,0.00011369,2]
[352776895,1739304639261,-500.0,0.00011369,2]
[352776897,1739304639270,-500.0,0.00011369,2]
[352776899,1739304639280,-500.0,0.00011369,2]
[352776901,1739304639289,-501.51,0.00011369,2]
[352776903,1739304639298,-1627.71,0.00011369,2]
[352776905,1739304639307,-572.28,0.00011369,2]
[352776907,1739304639316,-308.29,0.00011369,2]
[352776909,1739304639325,-396.0,0.00011499,2]
[352776911,1739304639334,-579.87,0.00011504,2]
[352776913,1739304639343,-1042.65,0.00011504,2]
[352776915,1739304639352,-500.0,0.00011504,2]
[352776917,1739304639361,-422.23,0.00011506,2]
[352776919,1739304639370,-263.67,0.00011506,2]
[352776921,1739304639380,-477.16,0.00011506,2]
[352776923,1739304639388,-476.09,0.00011506,2]
[352776925,1739304639398,-500.0,0.00011506,2]
[352776927,1739304639408,-567.65,0.00011506,2]
[352776929,1739304639418,-281.93,0.00011506,2]
[352776931,1739304639427,-409.42,0.00011506,2]
[352776932,1739304639437,-500.0,0.00011506,2]
[352776935,1739304639447,-530.7,0.00011506,2]
[352776936,1739304639456,-500.0,0.00011506,2]
[352776938,1739304639465,-402.95337162,0.00011506,2]
[352776940,1739304639474,-500.0,0.00011506,2]
[352776942,1739304639484,-501.51,0.00011506,2]
[352776944,1739304639493,-1627.71,0.00011506,2]
[352776946,1739304639502,-572.28,0.00011506,2]
[352776949,1739304639512,-150.0,0.00011551,2]
[352776951,1739304639522,-1970.0,0.00011551,2]
[352776953,1739304639531,-537.0,0.00011551,2]
[352776955,1739304639540,-2295.0,0.00011551,2]
[352776957,1739304639550,-500.0,0.00011643,2]
[352776959,1739304639559,-567.65,0.00011643,2]
[352776961,1739304639568,-506.65,0.00011643,2]
[352776963,1739304639578,-500.0,0.00011643,2]
[352776965,1739304639588,-282.14,0.00011643,2]
[352776967,1739304639597,-501.51,0.00011643,2]
[352776969,1739304639607,-1627.71,0.00011643,2]
[352776971,1739304639619,-572.28,0.00011643,2]
[352776973,1739304639628,-567.5,0.0001178,2]
[352776975,1739304639638,-567.65,0.0001178,2]
[352776977,1739304639648,-500.0,0.0001178,2]
[352776979,1739304639660,-501.51,0.0001178,2]
[352776981,1739304639669,-1627.71,0.0001178,2]
[352776983,1739304639678,-572.28,0.0001178,2]
[352776985,1739304639687,-567.65,0.00011917,2]
[352776987,1739304639698,-500.0,0.00011917,2]
[352776989,1739304639707,-501.51,0.00011917,2]
[352776991,1739304639717,-1627.71,0.00011917,2]
[352776993,1739304639726,-572.28,0.00011917,2]
[352776995,1739304639735,-1423.82,0.00012,2]
[352776997,1739304639744,-579.87,0.00012052,2]
[352776999,1739304639755,-1042.65,0.00012052,2]
[352777001,1739304639764,-547.58697855,0.00012052,2]
[352777003,1739304639774,-567.65,0.00012054,2]
[352777005,1739304639784,-372.56167173,0.00012054,2]
[352777007,1739304639795,-501.51,0.00012054,2]
[352777009,1739304639804,-1627.71,0.00012054,2]
[352777011,1739304639817,-572.28,0.00012054,2]
[352777013,1739304639826,-587.0,0.00012086,2]
[352777015,1739304639836,-663.74800858,0.00012091,2]
[352777017,1739304639846,-2000.0,0.000121,2]
[352777019,1739304639855,-567.65,0.00012191,2]
[352777021,1739304639866,-501.51,0.00012191,2]
[352777023,1739304639879,-1627.71,0.00012191,2]
[352777025,1739304639888,-572.28,0.00012191,2]
[352777027,1739304639898,-1200.0,0.00012294,2]
[352777029,1739304639909,-272.42368624,0.00012327,2]
[352777031,1739304639919,-567.65,0.00012328,2]
[352777033,1739304639929,-501.51,0.00012328,2]
[352777035,1739304639938,-1627.71,0.00012328,2]
[352777037,1739304639948,-572.28,0.00012328,2]
[352777039,1739304639957,-567.65,0.00012465,2]
[352777041,1739304639966,-501.51,0.00012465,2]
[352777043,1739304639975,-1627.71,0.00012465,2]
[352777045,1739304639984,-572.28,0.00012465,2]
[352777047,1739304639994,-500.21161223,0.000125,2]
[352777049,1739304640003,-152.0,0.00012516,2]
[352777051,1739304640013,-567.65,0.00012602,2]
[352777054,1739304640024,-501.51,0.00012602,2]
[352777055,1739304640034,-1627.71,0.00012602,2]
[352777057,1739304640043,-572.28,0.00012602,2]
[352777060,1739304640053,-423.0,0.000127,4]
[352777061,1739304640063,-567.65,0.00012739,2]
[352777064,1739304640074,-501.51,0.00012739,2]
[352777066,1739304640084,-1627.71,0.00012739,2]
[352777068,1739304640094,-572.28,0.00012739,2]
[352777070,1739304640104,-567.65,0.00012876,2]
[352777072,1739304640114,-501.51,0.00012876,2]
[352777074,1739304640123,-1627.71,0.00012876,2]
[352777076,1739304640133,-572.28,0.00012876,2]
[352777077,1739304640142,-195.0,0.00012892,2]
[352777079,1739304640151,-1241.1168522,0.000129,2]
[352777081,1739304640161,-1241.11685219,0.000129,2]
[352777083,1739304640170,-1241.11685219,0.000129,2]
[352777085,1739304640180,-567.65,0.00013013,2]
[352777087,1739304640191,-501.51,0.00013013,2]
[352777089,1739304640200,-1627.71,0.00013013,2]
[352777091,1739304640210,-572.28,0.00013013,2]
[352777093,1739304640219,-2000.0,0.000131,2]
[352777095,1739304640228,-579.87,0.00013148,2]
[352777097,1739304640238,-1042.65,0.00013148,2]
[352777099,1739304640247,-567.65,0.0001315,2]
[352777101,1739304640257,-501.51,0.0001315,2]
[352777103,1739304640267,-1627.71,0.0001315,2]
[352777105,1739304640277,-572.28,0.0001315,2]
[352777107,1739304640288,-252.0,0.00013278,2]
[352777109,1739304640297,-567.65,0.00013287,2]
[352777111,1739304640306,-501.51,0.00013287,2]
[352777113,1739304640316,-1627.71,0.00013287,2]
[352777115,1739304640326,-572.28,0.00013287,2]
[352777117,1739304640337,-1241.11685219,0.00013318,2]
[352777119,1739304640347,-567.65,0.00013424,2]
[352777121,1739304640356,-501.51,0.00013424,2]
[352777123,1739304640366,-1627.71,0.00013424,2]
[352777125,1739304640376,-572.28,0.00013424,2]
[352777127,1739304640385,-567.65,0.00013561,2]
[352777129,1739304640395,-501.51,0.00013561,2]
[352777131,1739304640406,-1627.71,0.00013561,2]
[352777133,1739304640417,-572.28,0.00013561,2]
[352777135,1739304640426,-1200.0,0.00013664,2]
[352777137,1739304640435,-325.0,0.00013677,2]
[352777139,1739304640444,-251.459,0.00013698,2]
[352777141,1739304640453,-524.43,0.00013698,2]
[352777143,1739304640463,-579.87,0.00013698,2]
[352777145,1739304640472,-1042.65,0.00013698,2]